Workbook

Sheet Presupuesto Aprobado-Ejec
A1: =A1:P15 -> 0
A3: Servicio Nacional de Salud
A4: Servicio Regional de Salud Norcentral
A5: Año 2025
A6: Ejecución de Gasto y Aplicaciones financieras
A7: En RD$
C8: INGRESO PRESUPUESTADO | P8: TOTAL DE INGRESO PERCIBIDO
B9: TOTAL DE INGRESOS | C9: =+C10+C11 -> 175,421,909.12 | D9: 12,531,104.16 | E9: 12,444,822.16 | F9: 12,660,015.16 | G9: 8,311,037.18 | H9: 18,803,458.03 | I9: =+I10+I11 -> 15,415,871.27 | J9: 0 | K9: 0 | L9: 0 | M9: 0 | N9: 0 | O9: =+O10+O11 -> 0 | P9: =SUM(D9:O9) -> 80,166,307.96
B10: INGRESOS VS | C10: 146,061,909.12 | D10: 12,531,104.16 | E10: 12,444,822.16 | F10: =11114600.76+1528189.4+17225 -> 12,660,015.16 | G10: =2420502.6+17225 -> 2,437,727.60 | H10: 12,936,146.76 | I10: =17225+1407911.2+11114600.76+76430+17225+60355 -> 12,693,746.96 | P10: =SUM(D10:O10) -> 65,703,562.80
B11: INGRESOS FR | C11: 29,360,000.00 | D11: 0 | E11: 0 | F11: 0 | G11: 5,873,309.58 | H11: 5,867,311.27 | I11: 2,722,124.31 | P11: =SUM(D11:O11) -> 14,462,745.16
A13: DETALLE | B13: Presupuesto Aprobado | C13: Presupuesto Modificado | D13: Gasto devengado
D14: Enero | E14: Febrero | F14: Marzo | G14: Abril | H14: Mayo | I14: Junio | J14: Julio | K14: Agosto | L14: Septiembre | M14: Octubre | N14: Noviembre | O14: Diciembre | P14: Total
A15: 2 - GASTOS
A16: 2.1 - REMUNERACIONES Y CONTRIBUCIONES | B16: =+B17+B18+B19+B20+B21 -> 32,166,067.26 | C16: =+C17+C18+C19+C20+C21 -> 0 | D16: =+D17+D18+D20+D19+D21 -> 2,105,831.81 | E16: =+E17+E18+E20+E19+E21 -> 2,106,372.50 | F16: =+F17+F18+F20+F19+F21 -> 2,109,450.50 | G16: =+G17+G18+G20+G19+G21 -> 9,382,268.29 | H16: =+H17+H18+H20+H19+H21 -> 2,097,972.50 | I16: =+I17+I18+I20+I19+I21 -> 1,025,761.86 | J16: 0.00 | K16: =+K17+K18+K20+K19+K21 -> 0.00 | L16: =+L17+L18+L20+L19+L21 -> 0.00 | M16: 0 | N16: =+N17+N18+N20+N19+N21 -> 0.00 | O16: 0.00 | P16: =+D16+E16+F16+G16+H16+I16+J16+K16+L16+M16+N16+O16 -> 18,827,657.46
A17: 2.1.1 - REMUNERACIONES | B17: 9,802,574.50 | C17: 0.00 | D17: 929,500.03 | E17: 929,500.03 | F17: 929,500.03 | G17: 929,500.03 | H17: 929,500.03 | I17: 995,862.31 | P17: =+D17+E17+F17+G17+H17+I17+J17+K17+L17+M17+N17+O17 -> 5,643,362.46
A18: 2.1.2 - SOBRESUELDOS | B18: 21,248,243.97 | C18: 0.00 | D18: 1,010,447.42 | E18: 1,010,447.42 | F18: 1,010,447.42 | G18: 8,286,343.21 | H18: 1,002,047.42 | I18: 4,487.21 | P18: =+D18+E18+F18+G18+H18+I18+J18+K18+L18+M18+N18+O18 -> 12,324,220.10
A19: 2.1.3 - DIETAS Y GASTOS DE REPRESENTACIÓN | B19: 0 | C19: 0.00 | D19: 0.00 | E19: 0.00 | F19: 0.00 | G19: 0.00 | H19: 0.00 | I19: 0.00 | P19: 0.00
A20: 2.1.4 - GRATIFICACIONES Y BONIFICACIONES | B20: 0 | C20: 0.00 | D20: 0.00 | E20: 0.00 | F20: 0.00 | G20: 0.00 | H20: 0.00 | I20: 25,412.34 | P20: 25,412.34
A21: 2.1.5 - CONTRIBUCIONES A LA SEGURIDAD SOCIAL | B21: 1,115,248.79 | C21: 0.00 | D21: 165,884.36 | E21: 166,425.05 | F21: 169,503.05 | G21: 166,425.05 | H21: 166,425.05 | I21: 0.00 | P21: 834,662.56
A22: 2.2 - CONTRATACIÓN DE SERVICIOS | B22: =+B23+B24+B25+B26+B27+B28+B29+B30+B31 -> 70,535,059.29 | C22: =+C23+C24+C25+C26+C27+C28+C29+C30+C31 -> 0 | D22: =+D23+D24+D25+D26+D27+D28+D29+D30+D31 -> 3,031,881.82 | E22: 2,109,855.07 | F22: 1,995,005.01 | G22: 4,082,700.30 | H22: 1,800,294.75 | I22: 1,797,782.71 | J22: =+J23+J24+J25+J26+J27+J28+J29+J30+J31 -> 0.00 | K22: =+K23+K24+K25+K26+K27+K28+K29+K30+K31 -> 0.00 | L22: =+L23+L24+L25+L26+L27+L28+L29+L30+L31 -> 0.00 | M22: 0 | N22: =+N23+N24+N25+N26+N27+N28+N29+N30+N31 -> 0.00 | O22: 0.00 | P22: =+D22+E22+F22+G22+H22+I22+J22+K22+L22+M22+N22+O22 -> 14,817,519.66
A23: 2.2.1 - SERVICIOS BÁSICOS | B23: 11,352,803.12 | C23: 0.00 | D23: 670,468.84 | E23: 651,716.04 | F23: 659,340.41 | G23: 648,098.88 | H23: 654,626.25 | I23: 667,862.26 | P23: 3,952,112.68
A24: 2.2.2 - PUBLICIDAD, IMPRESIÓN Y ENCUADERNACIÓN | B24: 6,164,065.37 | C24: 0.00 | D24: 772,345.40 | E24: 3,450.00 | F24: 1,180.00 | G24: 0.00 | H24: 0.00 | P24: 776,975.40
A25: 2.2.3 - VIÁTICOS | B25: 4,399,515.00 | C25: 0.00 | D25: 0.00 | E25: 0.00 | F25: 748,885.39 | G25: 814,500.00 | H25: 366,900.00 | I25: 710,550.00 | P25: 2,640,835.39
A26: 2.2.4 - TRANSPORTE Y ALMACENAJE | B26: 121,770.00 | C26: 0.00 | D26: 0.00 | E26: 6,120.00 | F26: 1,850.00 | G26: 3,500.00 | H26: 9,500.00 | I26: 5,400.00 | P26: 26,370.00
A27: 2.2.5 - ALQUILERES Y RENTAS | B27: 11,836,784.50 | C27: 0.00 | D27: 748,885.39 | E27: 808,185.39 | F27: 23,500.00 | G27: 755,435.39 | H27: 748,885.39 | I27: 0.00 | P27: 3,084,891.56
A28: 2.2.6 - SEGUROS | B28: 656,817.16 | C28: 0.00 | D28: 0.00 | E28: 0.00 | F28: 0.00 | G28: 0.00 | H28: 0.00 | I28: 0.00 | P28: 0.00
A29: 2.2.7 - SERVICIOS DE CONSERVACIÓN, REPARACIONES MENORES E INSTALACIONES TEMPORALES | B29: 33,245,208.81 | C29: 0.00 | D29: 106,350.00 | E29: 49,810.00 | F29: 346,949.24 | G29: 1,718,097.01 | H29: 8,900.00 | I29: 10,651.80 | P29: 2,240,758.05
A30: 2.2.8 - OTROS SERVICIOS NO INCLUIDOS EN CONCEPTOS ANTERIORES | B30: 2,758,095.33 | C30: 0.00 | D30: 153,255.19 | E30: 590,573.64 | F30: 87,174.97 | G30: 143,069.02 | H30: 11,483.11 | I30: =403318.65 -> 403,318.65 | P30: 1,388,874.58
A31: 2.2.9 - OTRAS CONTRATACIONES DE SERVICIOS | B31: 0 | C31: 0.00 | D31: 580,577.00 | E31: 0.00 | F31: 126,125.00 | G31: 0.00 | H31: 0.00 | P31: 706,702.00
A32: 2.3 - MATERIALES Y SUMINISTROS | B32: =+B33+B34+B35+B36+B37+B38+B39+B40+B41 -> 53,140,693.37 | C32: =+C33+C34+C35+C36+C37+C38+C39+C40+C41 -> 0 | D32: =+D33+D34+D35+D36+D37+D38+D39+D40+D41 -> 2,623,435.96 | E32: 394,451.81 | F32: 294,273.20 | G32: 4,667,571.01 | H32: 2,594,029.36 | I32: 5,918,832.38 | J32: 0.00 | K32: =+K33+K34+K35+K36+K37+K38+K39+K40+K41 -> 0.00 | L32: =+L33+L34+L35+L36+L37+L38+L39+L40+L41 -> 0.00 | M32: 0 | N32: =+N33+N34+N35+N36+N37+N38+N39+N40+N41 -> 0.00 | O32: 0.00 | P32: 16,492,593.72
A33: 2.3.1 - ALIMENTOS Y PRODUCTOS AGROFORESTALES | B33: 4,728,487.39 | C33: 0.00 | D33: 86,429.44 | E33: 1,435.00 | F33: 30,250.00 | G33: 274,104.94 | H33: 181,359.55 | I33: 14,083.48 | P33: 587,662.41
A34: 2.3.2 - TEXTILES Y VESTUARIOS | B34: 0 | C34: 0.00 | D34: 0.00 | E34: 0.00 | F34: 0.00 | G34: 0.00 | H34: 0.00 | I34: 0.00 | P34: 0.00
A35: 2.3.3 - PRODUCTOS DE PAPEL, CARTÓN E IMPRESOS | B35: 0 | C35: 0.00 | D35: 0.00 | E35: 0.00 | F35: 0.00 | G35: 2,950.00 | H35: 0.00 | I35: 0.00 | P35: =+D35+E35+F35+G35+H35+I35+J35+K35+L35+M35+N35+O35 -> 2,950.00
A36: 2.3.4 - PRODUCTOS FARMACÉUTICOS | B36: 400,000.00 | C36: 0.00 | D36: 0.00 | E36: 0.00 | F36: 0.00 | G36: 0.00 | H36: 200.00 | I36: 0.00 | P36: 200.00
A37: 2.3.5 - PRODUCTOS DE CUERO, CAUCHO Y PLÁSTICO | B37: 173,842.00 | C37: 0.00 | D37: 0.00 | E37: 38,278.00 | F37: 13,738.64 | G37: 73,632.00 | H37: 1,310.08 | I37: 1,502.94 | P37: 128,461.66
A38: 2.3.6 - PRODUCTOS DE MINERALES, METÁLICOS Y NO METÁLICOS | B38: 280,000.00 | C38: 0.00 | D38: 58,949.42 | E38: 1,315.00 | F38: 7,984.60 | G38: 725.00 | H38: 840.00 | I38: 7,192.00 | P38: 77,006.02
A39: 2.3.7 - COMBUSTIBLES, LUBRICANTES, PRODUCTOS QUÍMICOS Y CONEXOS | B39: 29,982,661.66 | C39: 0.00 | D39: 434,003.23 | E39: 346,856.03 | F39: 133,137.16 | G39: 3,851,474.89 | H39: 1,655,822.36 | I39: 1,725,341.23 | P39: 8,146,634.90
A40: 2.3.8 - GASTOS QUE SE ASIGNARÁN DURANTE EL EJERCICIO (ART. 32 Y 33 LEY 423-06) | B40: 0 | C40: 0.00 | D40: 0.00 | E40: 0.00 | F40: 0.00 | G40: 0.00 | H40: 0.00 | I40: 0.00 | P40: 0.00
A41: 2.3.9 - PRODUCTOS Y ÚTILES VARIOS | B41: 17,575,702.32 | C41: 0.00 | D41: 2,044,053.87 | E41: 6,567.78 | F41: 109,162.80 | G41: 464,684.18 | H41: 754,497.37 | I41: 4,170,712.73 | P41: 7,549,678.73
A42: 2.4 - TRANSFERENCIAS CORRIENTES | B42: =+B43+B44+B45+B46+B47+B48+B49+B49 -> 0 | C42: =+C43+C44+C45+C46+C47+C48+C49+C49 -> 0 | D42: =+D43+D44+D45+D46+D47+D48+D49+D49 -> 0.00 | E42: 0.00 | F42: 0.00 | G42: 0.00 | H42: 0.00 | I42: 0.00 | J42: 0.00 | K42: 0.00 | L42: =+L43+L44+L45+L46+L47+L48+L49+L49 -> 0.00 | M42: 0 | N42: =+N43+N44+N45+N46+N47+N48+N49+N49 -> 0.00 | O42: 0.00 | P42: =+D42+E42+F42+G42+H42+I42+J42+K42+L42+M42+N42+O42 -> 0.00
A43: 2.4.1 - TRANSFERENCIAS CORRIENTES AL SECTOR PRIVADO | B43: 0 | C43: 0.00 | D43: 0.00 | E43: 0.00 | F43: 0 | G43: 0 | H43: 0.00 | I43: 0.00 | J43: 0 | K43: 0 | L43: 0 | M43: 0 | N43: 0 | O43: 0.00 | P43: 0.00
A44: 2.4.2 - TRANSFERENCIAS CORRIENTES AL GOBIERNO GENERAL NACIONAL | B44: 0 | C44: 0.00 | D44: 0.00 | E44: 0.00 | F44: 0 | G44: 0 | H44: 0.00 | I44: 0.00 | J44: 0 | K44: 0 | L44: 0 | M44: 0 | N44: 0 | O44: 0.00 | P44: 0.00
A45: 2.4.3 - TRANSFERENCIAS CORRIENTES A GOBIERNOS GENERALES LOCALES | B45: 0 | C45: 0.00 | D45: 0.00 | E45: 0.00 | F45: 0 | G45: 0 | H45: 0.00 | I45: 0.00 | J45: 0 | K45: 0 | L45: 0 | M45: 0 | N45: 0 | O45: 0.00 | P45: 0.00
A46: 2.4.4 - TRANSFERENCIAS CORRIENTES A EMPRESAS PÚBLICAS NO FINANCIERAS | B46: 0 | C46: 0.00 | D46: 0.00 | E46: 0.00 | F46: 0 | G46: 0 | H46: 0.00 | I46: 0.00 | J46: 0 | K46: 0 | L46: 0 | M46: 0 | N46: 0 | O46: 0.00 | P46: 0.00
A47: 2.4.5 - TRANSFERENCIAS CORRIENTES A INSTITUCIONES PÚBLICAS FINANCIERAS | B47: 0 | C47: 0.00 | D47: 0.00 | E47: 0.00 | F47: 0 | G47: 0 | H47: 0.00 | I47: 0.00 | J47: 0 | K47: 0 | L47: 0 | M47: 0 | N47: 0 | O47: 0.00 | P47: 0.00
A48: 2.4.7 - TRANSFERENCIAS CORRIENTES AL SECTOR EXTERNO | B48: 0 | C48: 0.00 | D48: 0.00 | E48: 0.00 | F48: 0 | G48: 0 | H48: 0.00 | I48: 0.00 | J48: 0 | K48: 0 | L48: 0 | M48: 0 | N48: 0 | O48: 0.00 | P48: 0.00
A49: 2.4.9 - TRANSFERENCIAS CORRIENTES A OTRAS INSTITUCIONES PÚBLICAS | B49: 0 | C49: 0.00 | D49: 0.00 | E49: 0.00 | F49: 0 | G49: 0 | H49: 0.00 | I49: 0.00 | J49: 0 | K49: 0 | L49: 0 | M49: 0 | N49: 0 | O49: 0.00 | P49: 0.00
A50: 2.5 - TRANSFERENCIAS DE CAPITAL | B50: 0 | C50: 0 | D50: 0.00 | E50: 0.00 | F50: 0.00 | G50: 0.00 | H50: 0.00 | I50: 0.00 | J50: 0.00 | K50: 0.00 | L50: 0.00 | M50: 0 | N50: =+N51+N52+N53+N54+N55+N56+N57 -> 0.00 | O50: 0.00 | P50: =+D50+E50+F50+G50+H50+I50+J50+K50+L50+M50+N50+O50 -> 0.00
A51: 2.5.1 - TRANSFERENCIAS DE CAPITAL AL SECTOR PRIVADO | B51: 0 | C51: 0.00 | D51: 0.00 | E51: 0.00 | F51: 0 | G51: 0 | H51: 0.00 | I51: 0.00 | J51: 0 | K51: 0 | L51: 0 | M51: 0 | N51: 0 | O51: 0.00 | P51: =+D51+E51+F51+G51+H51+I51+J51+K51+L51+M51+N51+O51 -> 0.00
A52: 2.5.2 - TRANSFERENCIAS DE CAPITAL AL GOBIERNO GENERAL NACIONAL | B52: 0 | C52: 0.00 | D52: 0.00 | E52: 0.00 | F52: 0 | G52: 0 | H52: 0.00 | I52: 0.00 | J52: 0 | K52: 0 | L52: 0 | M52: 0 | N52: 0 | O52: 0.00 | P52: 0.00
A53: 2.5.3 - TRANSFERENCIAS DE CAPITAL A GOBIERNOS GENERALES LOCALES | B53: 0 | C53: 0.00 | D53: 0.00 | E53: 0.00 | F53: 0 | G53: 0 | H53: 0.00 | I53: 0.00 | J53: 0 | K53: 0 | L53: 0 | M53: 0 | N53: 0 | O53: 0.00 | P53: 0.00
A54: 2.5.4 - TRANSFERENCIAS DE CAPITAL A EMPRESAS PÚBLICAS NO FINANCIERAS | B54: 0 | C54: 0.00 | D54: 0.00 | E54: 0.00 | F54: 0 | G54: 0 | H54: 0.00 | I54: 0.00 | J54: 0 | K54: 0 | L54: 0 | M54: 0 | N54: 0 | O54: 0.00 | P54: 0.00
A55: 2.5.5 - TRANSFERENCIAS DE CAPITAL A INSTITUCIONES PÚBLICAS FINANCIERAS | B55: 0 | C55: 0.00 | D55: 0.00 | E55: 0.00 | F55: 0 | G55: 0 | H55: 0.00 | I55: 0.00 | J55: 0 | K55: 0 | L55: 0 | M55: 0 | N55: 0 | O55: 0.00 | P55: 0.00
A56: 2.5.6 - TRANSFERENCIAS DE CAPITAL AL SECTOR EXTERNO | B56: 0 | C56: 0.00 | D56: 0.00 | E56: 0.00 | F56: 0 | G56: 0 | H56: 0.00 | I56: 0.00 | J56: 0 | K56: 0 | L56: 0 | M56: 0 | N56: 0 | O56: 0.00 | P56: 0.00
A57: 2.5.9 - TRANSFERENCIAS DE CAPITAL A OTRAS INSTITUCIONES PÚBLICAS | B57: 0 | C57: 0.00 | D57: 0.00 | E57: 0.00 | F57: 0 | G57: 0 | H57: 0.00 | I57: 0.00 | J57: 0 | K57: 0 | L57: 0 | M57: 0 | N57: 0 | O57: 0.00 | P57: 0.00
A58: 2.6 - BIENES MUEBLES, INMUEBLES E INTANGIBLES | B58: =+B59+B60+B61+B62+B63+B64+B65+B66+B67 -> 19,580,089.21 | C58: =+C59+C60+C61+C62+C63+C64+C65+C66+C67 -> 0 | D58: =+D59+D60+D61+D62+D63+D64+D65+D66+D67 -> 464,625.00 | E58: 992,361.12 | F58: 506,791.85 | G58: 1,672,496.51 | H58: 0.00 | I58: 3,492,385.52 | J58: 0.00 | K58: =+K59+K60+K61+K62+K63+K64+K65+K66+K67 -> 0.00 | L58: 0.00 | M58: 0 | N58: 0.00 | O58: 0.00 | P58: 7,128,660.00
A59: 2.6.1 - MOBILIARIO Y EQUIPO | B59: 1,200,000.00 | C59: 0.00 | D59: 0.00 | E59: 0.00 | F59: 0.00 | G59: 829,756.35 | H59: 0.00 | I59: 2,833,617.52 | O59: 0.00 | P59: 3,663,373.87
A60: 2.6.2 - MOBILIARIO Y EQUIPO EDUCACIONAL Y RECREATIVO | B60: 0 | C60: 0.00 | D60: 0.00 | E60: 0.00 | F60: 0.00 | G60: 0.00 | H60: 0.00 | I60: 0.00 | P60: 0.00
A61: 2.6.3 - EQUIPO E INSTRUMENTAL, CIENTÍFICO Y LABORATORIO | B61: 15,880,089.21 | C61: 0.00 | D61: 464,625.00 | E61: 0.00 | F61: 506,791.85 | G61: 842,740.16 | H61: 0.00 | I61: 658,768.00 | P61: 2,472,925.01
A62: 2.6.4 - VEHÍCULOS Y EQUIPO DE TRANSPORTE, TRACCIÓN Y ELEVACIÓN | B62: 0 | C62: 0.00 | D62: 0.00 | E62: 0.00 | F62: 0.00 | G62: 0.00 | H62: 0.00 | I62: 0.00 | P62: 0.00
A63: 2.6.5 - MAQUINARIA, OTROS EQUIPOS Y HERRAMIENTAS | B63: 2,500,000.00 | C63: 0.00 | D63: 0.00 | E63: 992,361.12 | F63: 0.00 | G63: 0.00 | H63: 0.00 | I63: 0.00 | P63: 992,361.12
A64: 2.6.6 - EQUIPOS DE DEFENSA Y SEGURIDAD | B64: 0 | C64: 0.00 | D64: 0.00 | E64: 0.00 | F64: 0.00 | G64: 0.00 | H64: 0.00 | I64: 0.00 | P64: 0.00
A65: 2.6.7 - ACTIVOS BIÓLOGICOS CULTIVABLES | B65: 0 | C65: 0.00 | D65: 0.00 | E65: 0.00 | F65: 0.00 | G65: 0.00 | H65: 0.00 | I65: 0.00 | O65: 0.00 | P65: 0.00
A66: 2.6.8 - BIENES INTANGIBLES | B66: 0 | C66: 0.00 | D66: 0.00 | E66: 0.00 | F66: 0.00 | G66: 0.00 | H66: 0.00 | I66: 0.00 | O66: 0.00 | P66: 0.00
A67: 2.6.9 - EDIFICIOS, ESTRUCTURAS, TIERRAS, TERRENOS Y OBJETOS DE VALOR | B67: 0 | C67: 0.00 | D67: 0.00 | E67: 0.00 | F67: 0.00 | G67: 0.00 | H67: 0.00 | I67: 0.00 | O67: 0.00 | P67: 0.00
A68: 2.7 - OBRAS | B68: =+B69+B70+B71+B72 -> 0 | C68: =+C69+C70+C71+C72 -> 0 | D68: 0.00 | E68: 0.00 | F68: 0.00 | G68: 0.00 | H68: 0.00 | I68: 0.00 | J68: 0.00 | K68: 0.00 | L68: 0.00 | M68: 0 | N68: 0.00 | O68: 0.00 | P68: 0.00
A69: 2.7.1 - OBRAS EN EDIFICACIONES | B69: 0 | C69: 0.00 | D69: 0.00 | E69: 0.00 | F69: 0 | G69: 0.00 | H69: 0.00 | I69: 0 | J69: 0 | K69: 0 | L69: 0 | M69: 0 | N69: 0.00 | O69: 0.00 | P69: 0.00
A70: 2.7.2 - INFRAESTRUCTURA | B70: 0 | C70: 0.00 | D70: 0.00 | E70: 0.00 | F70: 0 | G70: 0 | H70: 0 | I70: 0 | J70: 0 | K70: 0 | L70: 0 | M70: 0 | N70: 0 | O70: 0.00 | P70: 0.00
A71: 2.7.3 - CONSTRUCCIONES EN BIENES CONCESIONADOS | B71: 0 | C71: 0.00 | D71: 0.00 | E71: 0.00 | F71: 0 | G71: 0 | H71: 0 | I71: 0 | J71: 0 | K71: 0 | L71: 0 | M71: 0 | N71: 0 | O71: 0.00 | P71: 0.00
A72: 2.7.4 - GASTOS QUE SE ASIGNARÁN DURANTE EL EJERCICIO PARA INVERSIÓN (ART. 32 Y 33 LEY 423-06) | B72: 0 | C72: 0.00 | D72: 0.00 | E72: 0.00 | F72: 0 | G72: 0 | H72: 0 | I72: 0 | J72: 0 | K72: 0 | L72: 0 | M72: 0 | N72: 0 | O72: 0.00 | P72: 0.00
A73: 2.8 - ADQUISICION DE ACTIVOS FINANCIEROS CON FINES DE POLÍTICA | B73: 0 | C73: 0 | D73: =+D74+D75 -> 0.00 | E73: 0.00 | F73: 0.00 | G73: 0.00 | H73: 0.00 | I73: 0.00 | J73: 0.00 | K73: 0.00 | L73: 0.00 | M73: 0 | N73: 0.00 | O73: 0.00 | P73: 0.00
A74: 2.8.1 - CONCESIÓN DE PRESTAMOS | B74: 0 | C74: 0.00 | D74: 0.00 | E74: 0.00 | F74: 0 | G74: 0 | H74: 0 | I74: 0 | J74: 0 | K74: 0 | L74: 0 | M74: 0 | N74: 0 | O74: 0.00 | P74: 0.00
A75: 2.8.2 - ADQUISICIÓN DE TÍTULOS VALORES REPRESENTATIVOS DE DEUDA | B75: 0 | C75: 0.00 | D75: 0.00 | E75: 0.00 | F75: 0 | G75: 0 | H75: 0 | I75: 0 | J75: 0 | K75: 0 | L75: 0 | M75: 0 | N75: 0 | O75: 0.00 | P75: 0.00
A76: 2.9 - GASTOS FINANCIEROS | B76: 0 | C76: 0 | D76: 0.00 | E76: 0.00 | F76: 0.00 | G76: 0.00 | H76: 0.00 | I76: 0.00 | P76: =+D76+E76+F76+G76+H76+I76+J76+K76+L76+M76+N76+O76 -> 0.00
A77: 2.9.1 - INTERESES DE LA DEUDA PÚBLICA INTERNA | B77: 0 | C77: 0.00 | D77: 0.00 | E77: 0.00 | F77: 0 | G77: 0 | H77: 0 | I77: 0 | J77: 0 | K77: 0 | L77: 0 | M77: 0 | N77: 0 | O77: 0.00 | P77: =+D77+E77+F77+G77+H77+I77+J77+K77+L77+M77+N77+O77 -> 0.00
A78: 2.9.2 - INTERESES DE LA DEUDA PUBLICA EXTERNA | B78: 0 | C78: 0.00 | D78: 0.00 | E78: 0.00 | F78: 0 | G78: 0 | H78: 0 | I78: 0 | J78: 0 | K78: 0 | L78: 0 | M78: 0 | N78: 0 | O78: 0.00 | P78: 0.00
A79: 2.9.4 - COMISIONES Y OTROS GASTOS BANCARIOS DE LA DEUDA PÚBLICA | B79: 0 | C79: 0.00 | D79: 0.00 | E79: 0.00 | F79: 0 | G79: 0 | H79: 0 | I79: 0 | J79: 0 | K79: 0 | L79: 0 | M79: 0 | N79: 0 | O79: 0.00 | P79: 0.00
A80: 4 - APLICACIONES FINANCIERAS | B80: 0 | C80: 0 | D80: 0.00 | E80: 0.00 | F80: 0.00 | G80: 0.00 | H80: 0.00 | I80: 0.00 | P80: 0.00
A81: 4.1 - INCREMENTO DE ACTIVOS FINANCIEROS | B81: 0 | C81: 0.00 | D81: 0.00 | E81: 0.00 | F81: 0 | G81: 0 | H81: 0 | I81: 0 | J81: 0 | K81: 0 | L81: 0 | M81: 0 | N81: 0 | O81: 0.00 | P81: =+D81+E81+F81+G81+H81+I81+J81+K81+L81+M81+N81+O81 -> 0.00
A82: 4.1.1 - INCREMENTO DE ACTIVOS FINANCIEROS CORRIENTES | B82: 0 | C82: 0.00 | D82: 0.00 | E82: 0.00 | F82: 0 | G82: 0 | H82: 0 | I82: 0 | J82: 0 | K82: 0 | L82: 0 | M82: 0 | N82: 0 | O82: 0.00 | P82: 0.00
A83: 4.1.2 - INCREMENTO DE ACTIVOS FINANCIEROS NO CORRIENTES | B83: 0 | C83: 0.00 | D83: 0.00 | E83: 0.00 | F83: 0 | G83: 0 | H83: 0 | I83: 0 | J83: 0 | K83: 0 | L83: 0 | M83: 0 | N83: 0 | O83: 0.00 | P83: 0.00
A84: 4.2 - DISMINUCIÓN DE PASIVOS | B84: 0 | C84: 0 | D84: 0.00 | E84: 0.00 | F84: 0.00 | G84: 0.00 | H84: 0.00 | I84: 0.00 | P84: 0.00
A85: 4.2.1 - DISMINUCIÓN DE PASIVOS CORRIENTES | B85: 0 | C85: 0.00 | D85: 0.00 | E85: 0.00 | F85: 0 | G85: 0 | H85: 0 | I85: 0 | J85: 0 | K85: 0 | L85: 0 | M85: 0 | N85: 0 | O85: 0.00 | P85: 0.00
A86: 4.2.2 - DISMINUCIÓN DE PASIVOS NO CORRIENTES | B86: 0 | C86: 0.00 | D86: 0.00 | E86: 0.00 | F86: 0 | G86: 0 | H86: 0 | I86: 0 | J86: 0 | K86: 0 | L86: 0 | M86: 0 | N86: 0 | O86: 0.00 | P86: 0.00
A87: 4.3 - DISMINUCIÓN DE FONDOS DE TERCEROS | B87: 0 | C87: 0 | D87: 0.00 | E87: 0.00 | F87: 0.00 | G87: 0.00 | H87: 0.00 | I87: 0.00 | J87: 0.00 | K87: 0.00 | L87: 0.00 | M87: 0 | N87: 0.00 | O87: 0.00 | P87: 0.00
A88: 4.3.5 - DISMINUCIÓN DEPÓSITOS FONDOS DE TERCEROS | C88: 0 | D88: 0.00 | E88: 0 | F88: 0 | G88: 0 | H88: 0 | I88: 0 | J88: 0 | K88: 0 | L88: 0 | M88: 0 | N88: 0 | O88: 0.00 | P88: 0.00
A89: Total general | B89: =+B16+B22+B32+B42+B58+B68 -> 175,421,909.1 | C89: =+C16+C22+C32+C42+C58+C68 -> 0 | D89: =+D16+D22+D32+D42+D58+D68 -> 8,225,774.59 | E89: 5,603,040.50 | F89: 4,905,520.56 | G89: 19,805,036.11 | H89: =+H16+H22+H32+H42+H58+H68 -> 6,492,296.61 | I89: =+I16+I22+I32+I42+I58+I68 -> 12,234,762.47 | J89: =+J16+J22+J32+J42+J58+J68 -> 0 | K89: =+K16+K22+K32+K42+K58+K68 -> 0 | L89: =+L16+L22+L32+L42+L58+L68 -> 0 | M89: =+M16+M22+M32+M42+M58+M68 -> 0 | N89: 0 | O89: 0.00 | P89: =+P16+P22+P32+P42+P58+P68 -> 57,266,430.8
A90: Ingreso Presupuestado 2025
A92: Presupuesto aprobado: Se refiere al presupuesto aprobado en la Ley de Presupuesto General del Estado.
A93: Presupuesto modificado: Se refiere al presupuesto aprobado en caso de que el Congreso Nacional apruebe un presupuesto complementario.
A94: Total devengado: Son los recursos financieros que surgen con la obligación de pago por la recepción de conformidad de obras, bienes y servicios oportunamente contratados o, en los casos de gastos sin contraprestación, por haberse cumplido los requisitos administrativos dispuestos por el reglamento de la presente Ley.
A98: Licda. Leynis Lantigua Hernández Cordinadora Financiera , SRSN II

Sheet PRESUPUESTO DEL 2025
A1: =A1:C14 -> 0
A3: Servicio Nacional de Salud
A4: Servicio Regional de Salud Norcentral
A5: PRESUPUESTO DEL AÑO 2025
A6: En RD$
C7: INGRESO PRESUPUESTADO
B8: TOTAL DE INGRESOS | C8: =+C9+C10 -> 175,421,909.12
B9: INGRESOS VS | C9: 146,061,909.12
B10: INGRESOS FR | C10: 29,360,000.00
A12: DETALLE | B12: Presupuesto Aprobado | C12: Presupuesto Modificado
A14: 2 - GASTOS
A15: 2.1 - REMUNERACIONES Y CONTRIBUCIONES | B15: =+B16+B17+B18+B19+B20 -> 32,166,067.26 | C15: =+C16+C17+C18+C19+C20 -> 0
A16: 2.1.1 - REMUNERACIONES | B16: 9,802,574.50 | C16: 0.00
A17: 2.1.2 - SOBRESUELDOS | B17: 21,248,243.97 | C17: 0.00
A18: 2.1.3 - DIETAS Y GASTOS DE REPRESENTACIÓN | B18: 0 | C18: 0.00
A19: 2.1.4 - GRATIFICACIONES Y BONIFICACIONES | B19: 0 | C19: 0.00
A20: 2.1.5 - CONTRIBUCIONES A LA SEGURIDAD SOCIAL | B20: 1,115,248.79 | C20: 0.00
A21: 2.2 - CONTRATACIÓN DE SERVICIOS | B21: =+B22+B23+B24+B25+B26+B27+B28+B29+B30 -> 70,535,059.29 | C21: =+C22+C23+C24+C25+C26+C27+C28+C29+C30 -> 0
A22: 2.2.1 - SERVICIOS BÁSICOS | B22: 11,352,803.12 | C22: 0.00
A23: 2.2.2 - PUBLICIDAD, IMPRESIÓN Y ENCUADERNACIÓN | B23: 6,164,065.37 | C23: 0.00
A24: 2.2.3 - VIÁTICOS | B24: 4,399,515.00 | C24: 0.00
A25: 2.2.4 - TRANSPORTE Y ALMACENAJE | B25: 121,770.00 | C25: 0.00
A26: 2.2.5 - ALQUILERES Y RENTAS | B26: 11,836,784.50 | C26: 0.00
A27: 2.2.6 - SEGUROS | B27: 656,817.16 | C27: 0.00
A28: 2.2.7 - SERVICIOS DE CONSERVACIÓN, REPARACIONES MENORES E INSTALACIONES TEMPORALES | B28: 33,245,208.81 | C28: 0.00
A29: 2.2.8 - OTROS SERVICIOS NO INCLUIDOS EN CONCEPTOS ANTERIORES | B29: 2,758,095.33 | C29: 0.00
A30: 2.2.9 - OTRAS CONTRATACIONES DE SERVICIOS | B30: 0 | C30: 0.00
A31: 2.3 - MATERIALES Y SUMINISTROS | B31: =+B32+B33+B34+B35+B36+B37+B38+B39+B40 -> 53,140,693.37 | C31: =+C32+C33+C34+C35+C36+C37+C38+C39+C40 -> 0
A32: 2.3.1 - ALIMENTOS Y PRODUCTOS AGROFORESTALES | B32: 4,728,487.39 | C32: 0.00
A33: 2.3.2 - TEXTILES Y VESTUARIOS | B33: 0 | C33: 0.00
A34: 2.3.3 - PRODUCTOS DE PAPEL, CARTÓN E IMPRESOS | B34: 0 | C34: 0.00
A35: 2.3.4 - PRODUCTOS FARMACÉUTICOS | B35: 400,000.00 | C35: 0.00
A36: 2.3.5 - PRODUCTOS DE CUERO, CAUCHO Y PLÁSTICO | B36: 173,842.00 | C36: 0.00
A37: 2.3.6 - PRODUCTOS DE MINERALES, METÁLICOS Y NO METÁLICOS | B37: 280,000.00 | C37: 0.00
A38: 2.3.7 - COMBUSTIBLES, LUBRICANTES, PRODUCTOS QUÍMICOS Y CONEXOS | B38: 29,982,661.66 | C38: 0.00
A39: 2.3.8 - GASTOS QUE SE ASIGNARÁN DURANTE EL EJERCICIO (ART. 32 Y 33 LEY 423-06) | B39: 0 | C39: 0.00
A40: 2.3.9 - PRODUCTOS Y ÚTILES VARIOS | B40: 17,575,702.32 | C40: 0.00
A41: 2.4 - TRANSFERENCIAS CORRIENTES | B41: =+B42+B43+B44+B45+B46+B47+B48+B48 -> 0 | C41: =+C42+C43+C44+C45+C46+C47+C48+C48 -> 0
A42: 2.4.1 - TRANSFERENCIAS CORRIENTES AL SECTOR PRIVADO | B42: 0 | C42: 0.00
A43: 2.4.2 - TRANSFERENCIAS CORRIENTES AL GOBIERNO GENERAL NACIONAL | B43: 0 | C43: 0.00
A44: 2.4.3 - TRANSFERENCIAS CORRIENTES A GOBIERNOS GENERALES LOCALES | B44: 0 | C44: 0.00
A45: 2.4.4 - TRANSFERENCIAS CORRIENTES A EMPRESAS PÚBLICAS NO FINANCIERAS | B45: 0 | C45: 0.00
A46: 2.4.5 - TRANSFERENCIAS CORRIENTES A INSTITUCIONES PÚBLICAS FINANCIERAS | B46: 0 | C46: 0.00
A47: 2.4.7 - TRANSFERENCIAS CORRIENTES AL SECTOR EXTERNO | B47: 0 | C47: 0.00
A48: 2.4.9 - TRANSFERENCIAS CORRIENTES A OTRAS INSTITUCIONES PÚBLICAS | B48: 0 | C48: 0.00
A49: 2.5 - TRANSFERENCIAS DE CAPITAL | B49: 0 | C49: 0
A50: 2.5.1 - TRANSFERENCIAS DE CAPITAL AL SECTOR PRIVADO | B50: 0 | C50: 0.00
A51: 2.5.2 - TRANSFERENCIAS DE CAPITAL AL GOBIERNO GENERAL NACIONAL | B51: 0 | C51: 0.00
A52: 2.5.3 - TRANSFERENCIAS DE CAPITAL A GOBIERNOS GENERALES LOCALES | B52: 0 | C52: 0.00
A53: 2.5.4 - TRANSFERENCIAS DE CAPITAL A EMPRESAS PÚBLICAS NO FINANCIERAS | B53: 0 | C53: 0.00
A54: 2.5.5 - TRANSFERENCIAS DE CAPITAL A INSTITUCIONES PÚBLICAS FINANCIERAS | B54: 0 | C54: 0.00
A55: 2.5.6 - TRANSFERENCIAS DE CAPITAL AL SECTOR EXTERNO | B55: 0 | C55: 0.00
A56: 2.5.9 - TRANSFERENCIAS DE CAPITAL A OTRAS INSTITUCIONES PÚBLICAS | B56: 0 | C56: 0.00
A57: 2.6 - BIENES MUEBLES, INMUEBLES E INTANGIBLES | B57: =+B58+B59+B60+B61+B62+B63+B64+B65+B66 -> 19,580,089.21 | C57: =+C58+C59+C60+C61+C62+C63+C64+C65+C66 -> 0
A58: 2.6.1 - MOBILIARIO Y EQUIPO | B58: 1,200,000.00 | C58: 0.00
A59: 2.6.2 - MOBILIARIO Y EQUIPO EDUCACIONAL Y RECREATIVO | B59: 0 | C59: 0.00
A60: 2.6.3 - EQUIPO E INSTRUMENTAL, CIENTÍFICO Y LABORATORIO | B60: 15,880,089.21 | C60: 0.00
A61: 2.6.4 - VEHÍCULOS Y EQUIPO DE TRANSPORTE, TRACCIÓN Y ELEVACIÓN | B61: 0 | C61: 0.00
A62: 2.6.5 - MAQUINARIA, OTROS EQUIPOS Y HERRAMIENTAS | B62: 2,500,000.00 | C62: 0.00
A63: 2.6.6 - EQUIPOS DE DEFENSA Y SEGURIDAD | B63: 0 | C63: 0.00
A64: 2.6.7 - ACTIVOS BIÓLOGICOS CULTIVABLES | B64: 0 | C64: 0.00
A65: 2.6.8 - BIENES INTANGIBLES | B65: 0 | C65: 0.00
A66: 2.6.9 - EDIFICIOS, ESTRUCTURAS, TIERRAS, TERRENOS Y OBJETOS DE VALOR | B66: 0 | C66: 0.00
A67: 2.7 - OBRAS | B67: =+B68+B69+B70+B71 -> 0 | C67: =+C68+C69+C70+C71 -> 0
A68: 2.7.1 - OBRAS EN EDIFICACIONES | B68: 0 | C68: 0.00
A69: 2.7.2 - INFRAESTRUCTURA | B69: 0 | C69: 0.00
A70: 2.7.3 - CONSTRUCCIONES EN BIENES CONCESIONADOS | B70: 0 | C70: 0.00
A71: 2.7.4 - GASTOS QUE SE ASIGNARÁN DURANTE EL EJERCICIO PARA INVERSIÓN (ART. 32 Y 33 LEY 423-06) | B71: 0 | C71: 0.00
A72: 2.8 - ADQUISICION DE ACTIVOS FINANCIEROS CON FINES DE POLÍTICA | B72: 0 | C72: 0
A73: 2.8.1 - CONCESIÓN DE PRESTAMOS | B73: 0 | C73: 0.00
A74: 2.8.2 - ADQUISICIÓN DE TÍTULOS VALORES REPRESENTATIVOS DE DEUDA | B74: 0 | C74: 0.00
A75: 2.9 - GASTOS FINANCIEROS | B75: 0 | C75: 0
A76: 2.9.1 - INTERESES DE LA DEUDA PÚBLICA INTERNA | B76: 0 | C76: 0.00
A77: 2.9.2 - INTERESES DE LA DEUDA PUBLICA EXTERNA | B77: 0 | C77: 0.00
A78: 2.9.4 - COMISIONES Y OTROS GASTOS BANCARIOS DE LA DEUDA PÚBLICA | B78: 0 | C78: 0.00
A79: 4 - APLICACIONES FINANCIERAS | B79: 0 | C79: 0
A80: 4.1 - INCREMENTO DE ACTIVOS FINANCIEROS | B80: 0 | C80: 0.00
A81: 4.1.1 - INCREMENTO DE ACTIVOS FINANCIEROS CORRIENTES | B81: 0 | C81: 0.00
A82: 4.1.2 - INCREMENTO DE ACTIVOS FINANCIEROS NO CORRIENTES | B82: 0 | C82: 0.00
A83: 4.2 - DISMINUCIÓN DE PASIVOS | B83: 0 | C83: 0
A84: 4.2.1 - DISMINUCIÓN DE PASIVOS CORRIENTES | B84: 0 | C84: 0.00
A85: 4.2.2 - DISMINUCIÓN DE PASIVOS NO CORRIENTES | B85: 0 | C85: 0.00
A86: 4.3 - DISMINUCIÓN DE FONDOS DE TERCEROS | B86: 0 | C86: 0
A87: 4.3.5 - DISMINUCIÓN DEPÓSITOS FONDOS DE TERCEROS | C87: 0
A88: Total general | B88: =+B15+B21+B31+B41+B57+B67 -> 175,421,909.1 | C88: =+C15+C21+C31+C41+C57+C67 -> 0
A89: Ingreso Presupuestado 2025
A91: Presupuesto aprobado: Se refiere al presupuesto aprobado en la Ley de Presupuesto General del Estado.
A92: Presupuesto modificado: Se refiere al presupuesto aprobado en caso de que el Congreso Nacional apruebe un presupuesto complementario.
A93: Total devengado: Son los recursos financieros que surgen con la obligación de pago por la recepción de conformidad de obras, bienes y servicios oportunamente contratados o, en los casos de gastos sin contraprestación, por haberse cumplido los requisitos administrativos dispuestos por el reglamento de la presente Ley.
A97: Licda. Leynis Lantigua Hernández Cordinadora Financiera , SRSN II
